[Event "Titled Tuesday Blitz January 31 Early 2023"]
[White "Mangialardo, Tiago Carvalho"]
[Black "Ordekalog"]
[WhiteFideId "2130718"]
[WhiteElo "1965"]
[BlackElo "2589"]
[Result "0-1"]
[Round "03"]
[TimeControl "180+2"]
[Date "2023.01.31"]
[WhiteClock "0:00:48"]
[BlackClock "0:02:07"]

1. e4 {[%clk 0:02:47]}  d5 {[%clk 0:02:59]} 2. exd5 {[%clk 0:02:47]}  Qxd5 {[%clk 0:02:59]} 3. Nc3 {[%clk 0:02:47]}  Qa5 {[%clk 0:02:59]} 4. d4 {[%clk 0:02:47]}  Nf6 {[%clk 0:02:59]} 5. Nf3 {[%clk 0:02:48]}  Bg4 {[%clk 0:02:59]} 6. Be2 {[%clk 0:02:49]}  Nc6 {[%clk 0:02:58]} 7. Be3 {[%clk 0:02:48]}  O-O-O {[%clk 0:02:58]} 8. O-O {[%clk 0:02:34]}  e5 {[%clk 0:02:58]} 9. d5 {[%clk 0:02:12]}  Nxd5 {[%clk 0:02:56]} 10. Nxd5 {[%clk 0:02:08]}  Rxd5 {[%clk 0:02:55]} 11. Qc1 {[%clk 0:02:08]}  e4 {[%clk 0:02:50]} 12. Nd4 {[%clk 0:02:02]}  Bxe2 {[%clk 0:02:36]} 13. Nxe2 {[%clk 0:02:02]}  Bd6 {[%clk 0:02:31]} 14. a3 {[%clk 0:02:02]}  Rh5 {[%clk 0:02:26]} 15. g3 {[%clk 0:01:51]}  Qf5 {[%clk 0:02:23]} 16. h4 {[%clk 0:01:29]}  Qg4 {[%clk 0:02:15]} 17. Re1 {[%clk 0:01:04]}  Ne5 {[%clk 0:02:11]} 18. Kg2 {[%clk 0:00:51]}  Rxh4 {[%clk 0:02:08]} 19. Rh1 {[%clk 0:00:48]}  Qf3+ {[%clk 0:02:07]} 0-1


[Site "https://www.chess.com"]

[Event "Titled Tuesday Blitz January 31 Early 2023"]
[White "Mohammed, Zozek Salah Mohammed"]
[Black "Baruch, Liam"]
[WhiteFideId "4803361"]
[BlackFideId "14322064"]
[WhiteElo "2210"]
[BlackElo "1718"]
[Result "1/2-1/2"]
[Round "03"]
[TimeControl "180+2"]
[Date "2023.01.31"]
[WhiteClock "0:00:39"]
[BlackClock "0:00:10"]

1. d4 {[%clk 0:03:00]}  d5 {[%clk 0:03:00]} 2. Nf3 {[%clk 0:02:59]}  Nf6 {[%clk 0:02:59]} 3. g3 {[%clk 0:02:58]}  e6 {[%clk 0:02:59]} 4. Bg2 {[%clk 0:02:59]}  Be7 {[%clk 0:03:00]} 5. O-O {[%clk 0:02:59]}  O-O {[%clk 0:03:00]} 6. c4 {[%clk 0:03:00]}  dxc4 {[%clk 0:03:01]} 7. Qc2 {[%clk 0:03:00]}  a6 {[%clk 0:03:01]} 8. a4 {[%clk 0:03:00]}  Bd7 {[%clk 0:03:01]} 9. Qxc4 {[%clk 0:03:00]}  Bc6 {[%clk 0:03:00]} 10. Nc3 {[%clk 0:03:00]}  a5 {[%clk 0:02:54]} 11. Bg5 {[%clk 0:02:59]}  Na6 {[%clk 0:02:49]} 12. Bxf6 {[%clk 0:02:57]}  Bxf6 {[%clk 0:02:49]} 13. e4 {[%clk 0:02:58]}  Nb4 {[%clk 0:02:34]} 14. Rad1 {[%clk 0:02:40]}  Qe8 {[%clk 0:02:23]} 15. b3 {[%clk 0:02:38]}  Rd8 {[%clk 0:02:07]} 16. h4 {[%clk 0:02:32]}  h6 {[%clk 0:01:58]} 17. d5 {[%clk 0:02:05]}  Bxc3 {[%clk 0:01:14]} 18. dxc6 {[%clk 0:02:03]}  Bf6 {[%clk 0:01:10]} 19. cxb7 {[%clk 0:01:58]}  Rb8 {[%clk 0:01:05]} 20. e5 {[%clk 0:01:56]}  Be7 {[%clk 0:01:04]} 21. Qxc7 {[%clk 0:01:54]}  Nd5 {[%clk 0:01:02]} 22. Rxd5 {[%clk 0:01:47]}  exd5 {[%clk 0:01:00]} 23. Nd4 {[%clk 0:01:47]}  Qd8 {[%clk 0:00:54]} 24. Qxd8 {[%clk 0:01:41]}  Bxd8 {[%clk 0:00:47]} 25. Bxd5 {[%clk 0:01:40]}  Bc7 {[%clk 0:00:36]} 26. Re1 {[%clk 0:01:19]}  Kh8 {[%clk 0:00:34]} 27. Kg2 {[%clk 0:01:14]}  Rfd8 {[%clk 0:00:31]} 28. Nc6 {[%clk 0:01:13]}  Rxd5 {[%clk 0:00:31]} 29. Nxb8 {[%clk 0:01:14]}  Bxb8 {[%clk 0:00:32]} 30. Rc1 {[%clk 0:01:13]}  Bxe5 {[%clk 0:00:25]} 31. Rc8+ {[%clk 0:01:13]}  Kh7 {[%clk 0:00:26]} 32. b8=Q {[%clk 0:01:10]}  Bxb8 {[%clk 0:00:26]} 33. Rxb8 {[%clk 0:01:11]}  Kg6 {[%clk 0:00:26]} 34. Rb5 {[%clk 0:01:12]}  Rd3 {[%clk 0:00:23]} 35. Kf1 {[%clk 0:01:08]}  Kf6 {[%clk 0:00:22]} 36. Ke2 {[%clk 0:01:08]}  Rc3 {[%clk 0:00:22]} 37. Kd2 {[%clk 0:01:07]}  Rf3 {[%clk 0:00:22]} 38. Ke2 {[%clk 0:01:01]}  Rc3 {[%clk 0:00:22]} 39. g4 {[%clk 0:01:01]}  Ke6 {[%clk 0:00:20]} 40. f4 {[%clk 0:01:00]}  Rh3 {[%clk 0:00:18]} 41. h5 {[%clk 0:00:56]}  Rg3 {[%clk 0:00:18]} 42. g5 {[%clk 0:00:56]}  hxg5 {[%clk 0:00:18]} 43. fxg5 {[%clk 0:00:56]}  Rh3 {[%clk 0:00:19]} 44. h6 {[%clk 0:00:57]}  gxh6 {[%clk 0:00:17]} 45. gxh6 {[%clk 0:00:58]}  Ke7 {[%clk 0:00:17]} 46. Rb6 {[%clk 0:00:55]}  f5 {[%clk 0:00:13]} 47. Kf2 {[%clk 0:00:54]}  Kf7 {[%clk 0:00:13]} 48. Rb5 {[%clk 0:00:51]}  Rxh6 {[%clk 0:00:12]} 49. Rxf5+ {[%clk 0:00:51]}  Rf6 {[%clk 0:00:11]} 50. Rxf6+ {[%clk 0:00:51]}  Kxf6 {[%clk 0:00:12]} 51. Ke2 {[%clk 0:00:44]}  Ke6 {[%clk 0:00:12]} 52. Kd2 {[%clk 0:00:45]}  Kd6 {[%clk 0:00:13]} 53. Kc2 {[%clk 0:00:42]}  Kc6 {[%clk 0:00:13]} 54. Kb2 {[%clk 0:00:41]}  Kb6 {[%clk 0:00:13]} 55. Kb1 {[%clk 0:00:40]}  Kb7 {[%clk 0:00:12]} 56. Kc1 {[%clk 0:00:40]}  Kc7 {[%clk 0:00:12]} 57. Kd2 {[%clk 0:00:41]}  Kd6 {[%clk 0:00:12]} 58. Ke3 {[%clk 0:00:37]}  Ke5 {[%clk 0:00:12]} 59. Kd3 {[%clk 0:00:37]}  Kd5 {[%clk 0:00:13]} 60. Kc2 {[%clk 0:00:37]}  Kc6 {[%clk 0:00:12]} 61. Kb2 {[%clk 0:00:37]}  Kb6 {[%clk 0:00:12]} 62. Ka3 {[%clk 0:00:37]}  Kc5 {[%clk 0:00:11]} 63. Ka2 {[%clk 0:00:37]}  Kc6 {[%clk 0:00:08]} 64. Kb1 {[%clk 0:00:36]}  Kb7 {[%clk 0:00:07]} 65. Kc1 {[%clk 0:00:36]}  Kc7 {[%clk 0:00:08]} 66. Kd1 {[%clk 0:00:36]}  Kd7 {[%clk 0:00:08]} 67. Ke1 {[%clk 0:00:37]}  Ke7 {[%clk 0:00:08]} 68. Kf1 {[%clk 0:00:38]}  Kd6 {[%clk 0:00:08]} 69. Ke2 {[%clk 0:00:38]}  Kc5 {[%clk 0:00:09]} 70. Kd3 {[%clk 0:00:37]}  Kb4 {[%clk 0:00:09]} 71. Kc2 {[%clk 0:00:37]}  Kc5 {[%clk 0:00:08]} 72. Kc3 {[%clk 0:00:38]}  Kd5 {[%clk 0:00:08]} 73. Kd3 {[%clk 0:00:36]}  Kc5 {[%clk 0:00:08]} 74. Kc3 {[%clk 0:00:37]}  Kd5 {[%clk 0:00:09]} 75. b4 {[%clk 0:00:37]}  axb4+ {[%clk 0:00:09]} 76. Kxb4 {[%clk 0:00:38]}  Kc6 {[%clk 0:00:10]} 77. Ka5 {[%clk 0:00:39]}  Kb7 {[%clk 0:00:10]} 1/2-1/2


[Site "https://www.chess.com"]

[Event "Titled Tuesday Blitz January 31 Early 2023"]
[White "Ajay, Karthikeyan"]
[Black "kiwibobo"]
[WhiteFideId "35011685"]
[WhiteElo "2454"]
[BlackElo "2040"]
[Result "1-0"]
[Round "03"]
[TimeControl "180+2"]
[Date "2023.01.31"]
[WhiteClock "0:00:32"]
[BlackClock "0:00:08"]

1. d4 {[%clk 0:03:00]}  Nf6 {[%clk 0:02:59]} 2. Bf4 {[%clk 0:02:59]}  g6 {[%clk 0:02:59]} 3. Nc3 {[%clk 0:02:58]}  d5 {[%clk 0:02:59]} 4. Qd2 {[%clk 0:02:57]}  Bg7 {[%clk 0:02:58]} 5. O-O-O {[%clk 0:02:58]}  O-O {[%clk 0:02:58]} 6. h4 {[%clk 0:02:57]}  h5 {[%clk 0:02:57]} 7. Bh6 {[%clk 0:02:52]}  c5 {[%clk 0:02:57]} 8. Bxg7 {[%clk 0:02:51]}  Kxg7 {[%clk 0:02:57]} 9. dxc5 {[%clk 0:02:51]}  Qa5 {[%clk 0:02:53]} 10. Kb1 {[%clk 0:02:45]}  Qxc5 {[%clk 0:02:43]} 11. e3 {[%clk 0:02:39]}  Bf5 {[%clk 0:02:40]} 12. Nf3 {[%clk 0:02:35]}  Nc6 {[%clk 0:02:35]} 13. Nd4 {[%clk 0:02:33]}  Nxd4 {[%clk 0:02:30]} 14. Qxd4 {[%clk 0:02:33]}  Qxd4 {[%clk 0:02:25]} 15. Rxd4 {[%clk 0:02:34]}  e5 {[%clk 0:02:22]} 16. Rd2 {[%clk 0:02:32]}  Rfd8 {[%clk 0:02:06]} 17. f3 {[%clk 0:02:25]}  Rac8 {[%clk 0:02:02]} 18. Bd3 {[%clk 0:02:23]}  e4 {[%clk 0:01:41]} 19. Be2 {[%clk 0:02:20]}  exf3 {[%clk 0:01:36]} 20. Bxf3 {[%clk 0:02:20]}  Ne4 {[%clk 0:01:33]} 21. Bxe4 {[%clk 0:02:18]}  dxe4 {[%clk 0:01:30]} 22. Rhd1 {[%clk 0:02:15]}  Rxd2 {[%clk 0:01:28]} 23. Rxd2 {[%clk 0:02:16]}  Rc7 {[%clk 0:01:25]} 24. g3 {[%clk 0:02:03]}  Rd7 {[%clk 0:01:12]} 25. Nxe4 {[%clk 0:01:51]}  Re7 {[%clk 0:00:59]} 26. Nd6 {[%clk 0:00:54]}  Rxe3 {[%clk 0:00:58]} 27. b3 {[%clk 0:00:48]}  Rxg3 {[%clk 0:00:53]} 28. Rf2 {[%clk 0:00:48]}  Be6 {[%clk 0:00:49]} 29. Nxb7 {[%clk 0:00:45]}  Rh3 {[%clk 0:00:46]} 30. Rf4 {[%clk 0:00:45]}  Bg4 {[%clk 0:00:45]} 31. Nd6 {[%clk 0:00:42]}  f5 {[%clk 0:00:43]} 32. c4 {[%clk 0:00:40]}  Rxh4 {[%clk 0:00:42]} 33. c5 {[%clk 0:00:40]}  Rh1+ {[%clk 0:00:26]} 34. Kb2 {[%clk 0:00:40]}  g5 {[%clk 0:00:22]} 35. c6 {[%clk 0:00:35]}  Be2 {[%clk 0:00:17]} 36. Rxf5 {[%clk 0:00:32]}  g4 {[%clk 0:00:13]} 37. c7 {[%clk 0:00:32]}  Ba6 {[%clk 0:00:12]} 38. Ra5 {[%clk 0:00:31]}  g3 {[%clk 0:00:12]} 39. Rxa6 {[%clk 0:00:30]}  g2 {[%clk 0:00:12]} 40. c8=Q {[%clk 0:00:30]}  g1=Q {[%clk 0:00:10]} 41. Nf5+ {[%clk 0:00:30]}  Kf7 {[%clk 0:00:08]} 42. Qe6+ {[%clk 0:00:30]}  Kf8 {[%clk 0:00:09]} 43. Qf6+ {[%clk 0:00:30]}  Kg8 {[%clk 0:00:07]} 44. Ne7+ {[%clk 0:00:31]}  Kh7 {[%clk 0:00:08]} 45. Qh6# {[%clk 0:00:32]} 1-0


[Site "https://www.chess.com"]

[Event "Titled Tuesday Blitz January 31 Early 2023"]
[White "Bruned, Yvain"]
[Black "Zaichenko, Daria"]
[WhiteFideId "2250292"]
[BlackFideId "4197453"]
[WhiteElo "2286"]
[BlackElo "2104"]
[Result "1/2-1/2"]
[Round "03"]
[TimeControl "180+2"]
[Date "2023.01.31"]
[WhiteClock "0:00:48"]
[BlackClock "0:01:48"]

1. b3 {[%clk 0:03:00]}  d5 {[%clk 0:02:59]} 2. Bb2 {[%clk 0:03:01]}  c5 {[%clk 0:02:59]} 3. e3 {[%clk 0:03:01]}  Nc6 {[%clk 0:02:58]} 4. Bb5 {[%clk 0:03:02]}  Bd7 {[%clk 0:02:54]} 5. Nf3 {[%clk 0:03:01]}  Nf6 {[%clk 0:02:53]} 6. Bxc6 {[%clk 0:02:59]}  Bxc6 {[%clk 0:02:52]} 7. Ne5 {[%clk 0:03:00]}  e6 {[%clk 0:02:52]} 8. Nxc6 {[%clk 0:03:00]}  bxc6 {[%clk 0:02:53]} 9. O-O {[%clk 0:03:01]}  Be7 {[%clk 0:02:53]} 10. d3 {[%clk 0:02:58]}  O-O {[%clk 0:02:52]} 11. Nd2 {[%clk 0:02:59]}  Nd7 {[%clk 0:02:46]} 12. f4 {[%clk 0:02:58]}  f5 {[%clk 0:02:45]} 13. Qe2 {[%clk 0:02:40]}  Bf6 {[%clk 0:02:45]} 14. Bxf6 {[%clk 0:02:39]}  Qxf6 {[%clk 0:02:45]} 15. Nf3 {[%clk 0:02:33]}  e5 {[%clk 0:02:44]} 16. fxe5 {[%clk 0:01:51]}  Nxe5 {[%clk 0:02:43]} 17. Nxe5 {[%clk 0:01:52]}  Qxe5 {[%clk 0:02:43]} 18. Rae1 {[%clk 0:01:53]}  Rae8 {[%clk 0:02:42]} 19. Qf2 {[%clk 0:01:53]}  Qc3 {[%clk 0:02:37]} 20. Re2 {[%clk 0:01:45]}  d4 {[%clk 0:02:34]} 21. exd4 {[%clk 0:01:40]}  Rxe2 {[%clk 0:02:32]} 22. Qxe2 {[%clk 0:01:39]}  cxd4 {[%clk 0:02:33]} 23. Qe6+ {[%clk 0:01:27]}  Kh8 {[%clk 0:02:28]} 24. Rxf5 {[%clk 0:01:27]}  Qa1+ {[%clk 0:02:21]} 25. Kf2 {[%clk 0:01:20]}  Rxf5+ {[%clk 0:02:21]} 26. Qxf5 {[%clk 0:01:20]}  h6 {[%clk 0:02:21]} 27. Qc8+ {[%clk 0:01:11]}  Kh7 {[%clk 0:02:21]} 28. Qxc6 {[%clk 0:01:08]}  Qxa2 {[%clk 0:02:20]} 29. Qe4+ {[%clk 0:01:08]}  Kh8 {[%clk 0:02:20]} 30. Qe8+ {[%clk 0:01:07]}  Kh7 {[%clk 0:02:19]} 31. Qe4+ {[%clk 0:01:07]}  Kh8 {[%clk 0:02:19]} 32. Qc6 {[%clk 0:01:05]}  Qb2 {[%clk 0:02:10]} 33. Qe8+ {[%clk 0:01:02]}  Kh7 {[%clk 0:02:10]} 34. Qe4+ {[%clk 0:01:02]}  Kh8 {[%clk 0:02:09]} 35. Qe2 {[%clk 0:01:03]}  Qc1 {[%clk 0:02:03]} 36. h3 {[%clk 0:01:01]}  Qf4+ {[%clk 0:02:02]} 37. Qf3 {[%clk 0:00:58]}  Qd2+ {[%clk 0:01:58]} 38. Qe2 {[%clk 0:00:57]}  Qf4+ {[%clk 0:01:58]} 39. Kg1 {[%clk 0:00:57]}  Qc1+ {[%clk 0:01:58]} 40. Kh2 {[%clk 0:00:57]}  a5 {[%clk 0:01:55]} 41. Qe8+ {[%clk 0:00:53]}  Kh7 {[%clk 0:01:54]} 42. Qe4+ {[%clk 0:00:52]}  Kh8 {[%clk 0:01:55]} 43. Qxd4 {[%clk 0:00:51]}  Qxc2 {[%clk 0:01:55]} 44. Qd8+ {[%clk 0:00:47]}  Kh7 {[%clk 0:01:55]} 45. Qxa5 {[%clk 0:00:47]}  Qxd3 {[%clk 0:01:52]} 46. Qa4 {[%clk 0:00:47]}  Qd6+ {[%clk 0:01:50]} 47. Kg1 {[%clk 0:00:46]}  Qd1+ {[%clk 0:01:50]} 48. Kf2 {[%clk 0:00:47]}  Qd2+ {[%clk 0:01:50]} 49. Kg3 {[%clk 0:00:47]}  Qe3+ {[%clk 0:01:48]} 50. Kh2 {[%clk 0:00:47]}  Qe5+ {[%clk 0:01:48]} 51. Kg1 {[%clk 0:00:47]}  Qe1+ {[%clk 0:01:48]} 52. Kh2 {[%clk 0:00:47]}  Qe5+ {[%clk 0:01:48]} 53. Kg1 {[%clk 0:00:48]}  Qe1+ {[%clk 0:01:48]} 54. Kh2 {[%clk 0:00:48]}  Qe5+ {[%clk 0:01:48]} 1/2-1/2


[Site "https://www.chess.com"]

[Event "Titled Tuesday Blitz January 31 Early 2023"]
[White "Filgueiras, Nathan Felipe"]
[Black "Trigo Urquijo, Sergio"]
[WhiteFideId "2188562"]
[BlackFideId "2262436"]
[WhiteElo "2319"]
[BlackElo "2408"]
[Result "0-1"]
[Round "03"]
[TimeControl "180+2"]
[Date "2023.01.31"]
[WhiteClock "0:01:21"]
[BlackClock "0:01:26"]

1. e4 {[%clk 0:03:00]}  c6 {[%clk 0:02:59]} 2. d4 {[%clk 0:03:00]}  d5 {[%clk 0:02:59]} 3. exd5 {[%clk 0:03:01]}  cxd5 {[%clk 0:02:59]} 4. Bd3 {[%clk 0:03:02]}  Nc6 {[%clk 0:02:58]} 5. c3 {[%clk 0:03:02]}  Qc7 {[%clk 0:02:58]} 6. Ne2 {[%clk 0:03:03]}  Nf6 {[%clk 0:02:52]} 7. O-O {[%clk 0:03:03]}  g6 {[%clk 0:02:47]} 8. Ng3 {[%clk 0:03:02]}  Bg7 {[%clk 0:02:47]} 9. Qe2 {[%clk 0:03:00]}  O-O {[%clk 0:02:48]} 10. Nd2 {[%clk 0:02:58]}  a6 {[%clk 0:02:44]} 11. Re1 {[%clk 0:02:56]}  b5 {[%clk 0:02:43]} 12. h3 {[%clk 0:02:54]}  Re8 {[%clk 0:02:40]} 13. a3 {[%clk 0:02:53]}  Na5 {[%clk 0:02:38]} 14. Rb1 {[%clk 0:02:49]}  Nc4 {[%clk 0:02:38]} 15. Nxc4 {[%clk 0:02:49]}  dxc4 {[%clk 0:02:37]} 16. Bc2 {[%clk 0:02:49]}  Bb7 {[%clk 0:02:37]} 17. Ne4 {[%clk 0:02:49]}  e5 {[%clk 0:02:32]} 18. Nxf6+ {[%clk 0:02:49]}  Bxf6 {[%clk 0:02:33]} 19. dxe5 {[%clk 0:02:50]}  Rxe5 {[%clk 0:02:31]} 20. Qd1 {[%clk 0:02:49]}  Qc6 {[%clk 0:02:29]} 21. f3 {[%clk 0:02:47]}  Rxe1+ {[%clk 0:02:26]} 22. Qxe1 {[%clk 0:02:47]}  Re8 {[%clk 0:02:27]} 23. Qf2 {[%clk 0:02:40]}  Bd8 {[%clk 0:02:26]} 24. Kh1 {[%clk 0:02:34]}  Bc7 {[%clk 0:02:21]} 25. Bg5 {[%clk 0:02:16]}  Qd6 {[%clk 0:02:17]} 26. f4 {[%clk 0:02:09]}  Qd7 {[%clk 0:02:12]} 27. Rd1 {[%clk 0:02:07]}  Qxh3+ {[%clk 0:02:11]} 28. Kg1 {[%clk 0:02:08]}  Qe6 {[%clk 0:02:07]} 29. Kh2 {[%clk 0:02:05]}  f6 {[%clk 0:02:03]} 30. Bh6 {[%clk 0:02:05]}  Qg4 {[%clk 0:01:58]} 31. Rd7 {[%clk 0:01:42]}  Bb6 {[%clk 0:01:45]} 32. Qg3 {[%clk 0:01:26]}  Qxd7 {[%clk 0:01:37]} 33. Bxg6 {[%clk 0:01:25]}  hxg6 {[%clk 0:01:28]} 34. Qxg6+ {[%clk 0:01:25]}  Kh8 {[%clk 0:01:29]} 35. Qxf6+ {[%clk 0:01:25]}  Kh7 {[%clk 0:01:29]} 36. Qxb6 {[%clk 0:01:21]}  Re6 {[%clk 0:01:26]} 0-1


[Site "https://www.chess.com"]

[Event "Titled Tuesday Blitz January 31 Early 2023"]
[White "Jiganchine, Roman"]
[Black "Ibarra Jerez, Jose Carlos"]
[WhiteFideId "2603667"]
[BlackFideId "2226332"]
[WhiteElo "2205"]
[BlackElo "2563"]
[Result "0-1"]
[Round "03"]
[TimeControl "180+2"]
[Date "2023.01.31"]
[WhiteClock "0:00:51"]
[BlackClock "0:01:29"]

1. e4 {[%clk 0:02:56]}  c5 {[%clk 0:02:56]} 2. Nf3 {[%clk 0:02:56]}  e6 {[%clk 0:02:56]} 3. g3 {[%clk 0:02:56]}  Nc6 {[%clk 0:02:56]} 4. Bg2 {[%clk 0:02:54]}  Nf6 {[%clk 0:02:57]} 5. d3 {[%clk 0:02:53]}  d5 {[%clk 0:02:56]} 6. Qe2 {[%clk 0:02:51]}  g6 {[%clk 0:02:56]} 7. O-O {[%clk 0:02:39]}  Bg7 {[%clk 0:02:56]} 8. e5 {[%clk 0:02:37]}  Nd7 {[%clk 0:02:56]} 9. Bf4 {[%clk 0:02:37]}  h6 {[%clk 0:02:57]} 10. h4 {[%clk 0:02:37]}  b6 {[%clk 0:02:55]} 11. Re1 {[%clk 0:02:33]}  Bb7 {[%clk 0:02:54]} 12. c3 {[%clk 0:02:33]}  a5 {[%clk 0:02:53]} 13. Nbd2 {[%clk 0:02:33]}  Qc7 {[%clk 0:02:52]} 14. a4 {[%clk 0:02:33]}  Rc8 {[%clk 0:02:47]} 15. Nf1 {[%clk 0:02:29]}  Ba6 {[%clk 0:02:48]} 16. Qe3 {[%clk 0:02:17]}  Ne7 {[%clk 0:02:47]} 17. g4 {[%clk 0:02:13]}  h5 {[%clk 0:02:46]} 18. Bh3 {[%clk 0:02:05]}  hxg4 {[%clk 0:02:43]} 19. Bxg4 {[%clk 0:02:06]}  Bb7 {[%clk 0:02:33]} 20. d4 {[%clk 0:02:01]}  Ba6 {[%clk 0:02:31]} 21. Ng3 {[%clk 0:02:00]}  Nf5 {[%clk 0:02:24]} 22. Bxf5 {[%clk 0:01:52]}  gxf5 {[%clk 0:02:25]} 23. Bg5 {[%clk 0:01:45]}  Nf8 {[%clk 0:02:17]} 24. h5 {[%clk 0:01:35]}  Nh7 {[%clk 0:02:17]} 25. Bf4 {[%clk 0:01:35]}  Qe7 {[%clk 0:02:15]} 26. Ng5 {[%clk 0:01:32]}  Bh6 {[%clk 0:02:02]} 27. Nxh7 {[%clk 0:01:26]}  Bxf4 {[%clk 0:01:59]} 28. Qxf4 {[%clk 0:01:27]}  Rxh7 {[%clk 0:01:59]} 29. Kg2 {[%clk 0:01:27]}  Qf8 {[%clk 0:01:56]} 30. Nxf5 {[%clk 0:01:17]}  exf5 {[%clk 0:01:47]} 31. e6 {[%clk 0:01:17]}  Qg7+ {[%clk 0:01:45]} 32. Kf3 {[%clk 0:01:08]}  Qg4+ {[%clk 0:01:34]} 33. Qxg4 {[%clk 0:01:06]}  fxg4+ {[%clk 0:01:35]} 34. Kxg4 {[%clk 0:01:07]}  Rc6 {[%clk 0:01:31]} 35. exf7+ {[%clk 0:00:58]}  Kxf7 {[%clk 0:01:32]} 36. Re5 {[%clk 0:00:58]}  Bc8+ {[%clk 0:01:31]} 37. Kh4 {[%clk 0:00:58]}  Rf6 {[%clk 0:01:31]} 38. Kg3 {[%clk 0:00:51]}  Rg7+ {[%clk 0:01:29]} 0-1


[Site "https://www.chess.com"]

[Event "Titled Tuesday Blitz January 31 Early 2023"]
[White "Zahid, Sanatan"]
[Black "Mushini Ajay"]
[WhiteFideId "10201963"]
[BlackFideId "35066188"]
[WhiteElo "1930"]
[BlackElo "2310"]
[Result "1-0"]
[Round "03"]
[TimeControl "180+2"]
[Date "2023.01.31"]
[WhiteClock "0:00:07"]
[BlackClock "0:00:03"]

1. e4 {[%clk 0:03:00]}  c5 {[%clk 0:02:59]} 2. Nf3 {[%clk 0:03:01]}  e6 {[%clk 0:02:59]} 3. d4 {[%clk 0:03:01]}  cxd4 {[%clk 0:02:59]} 4. Nxd4 {[%clk 0:03:02]}  a6 {[%clk 0:02:59]} 5. c4 {[%clk 0:03:02]}  Nf6 {[%clk 0:02:58]} 6. Nc3 {[%clk 0:03:01]}  Bb4 {[%clk 0:02:58]} 7. Qd3 {[%clk 0:03:00]}  Nc6 {[%clk 0:02:58]} 8. Be2 {[%clk 0:02:56]}  O-O {[%clk 0:02:55]} 9. O-O {[%clk 0:02:55]}  Nxd4 {[%clk 0:02:54]} 10. Qxd4 {[%clk 0:02:54]}  d6 {[%clk 0:02:54]} 11. f3 {[%clk 0:02:51]}  Bc5 {[%clk 0:02:54]} 12. Be3 {[%clk 0:02:49]}  Bxd4 {[%clk 0:02:53]} 13. Bxd4 {[%clk 0:02:50]}  Qe7 {[%clk 0:02:49]} 14. Rfd1 {[%clk 0:02:47]}  Bd7 {[%clk 0:02:48]} 15. a4 {[%clk 0:02:47]}  Bc6 {[%clk 0:02:48]} 16. Bf2 {[%clk 0:02:43]}  d5 {[%clk 0:02:37]} 17. exd5 {[%clk 0:01:44]}  exd5 {[%clk 0:02:36]} 18. c5 {[%clk 0:01:44]}  Rad8 {[%clk 0:02:31]} 19. Bf1 {[%clk 0:01:41]}  d4 {[%clk 0:02:20]} 20. Ne2 {[%clk 0:01:37]}  d3 {[%clk 0:02:00]} 21. Nd4 {[%clk 0:01:34]}  Rxd4 {[%clk 0:01:48]} 22. Bxd4 {[%clk 0:01:32]}  Rd8 {[%clk 0:01:48]} 23. Bf2 {[%clk 0:01:30]}  d2 {[%clk 0:01:45]} 24. b4 {[%clk 0:01:28]}  Qd7 {[%clk 0:01:32]} 25. Be3 {[%clk 0:01:25]}  Nd5 {[%clk 0:01:22]} 26. Bg5 {[%clk 0:01:19]}  f6 {[%clk 0:01:20]} 27. Bxd2 {[%clk 0:01:18]}  Bxa4 {[%clk 0:01:19]} 28. Re1 {[%clk 0:01:15]}  Bb5 {[%clk 0:01:19]} 29. Re4 {[%clk 0:01:12]}  Bxf1 {[%clk 0:01:15]} 30. Rxf1 {[%clk 0:01:11]}  f5 {[%clk 0:01:10]} 31. Rd4 {[%clk 0:01:09]}  Re8 {[%clk 0:01:03]} 32. Rc1 {[%clk 0:00:49]}  Re2 {[%clk 0:00:59]} 33. h4 {[%clk 0:00:44]}  Qe6 {[%clk 0:00:52]} 34. Kf1 {[%clk 0:00:34]}  h6 {[%clk 0:00:38]} 35. Rxd5 {[%clk 0:00:32]}  Qxd5 {[%clk 0:00:27]} 36. Kxe2 {[%clk 0:00:30]}  Qe5+ {[%clk 0:00:24]} 37. Kf1 {[%clk 0:00:28]}  Qd4 {[%clk 0:00:21]} 38. Ke2 {[%clk 0:00:26]}  Qxh4 {[%clk 0:00:21]} 39. c6 {[%clk 0:00:21]}  bxc6 {[%clk 0:00:21]} 40. Rxc6 {[%clk 0:00:22]}  Qg3 {[%clk 0:00:21]} 41. Kf1 {[%clk 0:00:17]}  h5 {[%clk 0:00:21]} 42. Rxa6 {[%clk 0:00:15]}  h4 {[%clk 0:00:20]} 43. Be1 {[%clk 0:00:15]}  Qg5 {[%clk 0:00:20]} 44. Ra3 {[%clk 0:00:15]}  Qf4 {[%clk 0:00:19]} 45. Rd3 {[%clk 0:00:14]}  Qc4 {[%clk 0:00:19]} 46. Ke2 {[%clk 0:00:14]}  g5 {[%clk 0:00:19]} 47. Ke3 {[%clk 0:00:13]}  g4 {[%clk 0:00:19]} 48. Rd8+ {[%clk 0:00:13]}  Kf7 {[%clk 0:00:19]} 49. fxg4 {[%clk 0:00:13]}  Qe4+ {[%clk 0:00:18]} 50. Kf2 {[%clk 0:00:13]}  Qxg4 {[%clk 0:00:17]} 51. Rd3 {[%clk 0:00:13]}  Kg6 {[%clk 0:00:17]} 52. Rf3 {[%clk 0:00:14]}  Kh5 {[%clk 0:00:17]} 53. Bd2 {[%clk 0:00:13]}  Qd4+ {[%clk 0:00:17]} 54. Be3 {[%clk 0:00:14]}  Qxb4 {[%clk 0:00:16]} 55. Rxf5+ {[%clk 0:00:14]}  Kg6 {[%clk 0:00:17]} 56. Rf4 {[%clk 0:00:14]}  Qb2+ {[%clk 0:00:16]} 57. Kf3 {[%clk 0:00:15]}  Qb7+ {[%clk 0:00:15]} 58. Kf2 {[%clk 0:00:15]}  Qe7 {[%clk 0:00:15]} 59. Rg4+ {[%clk 0:00:15]}  Kh5 {[%clk 0:00:15]} 60. Rf4 {[%clk 0:00:14]}  Kg6 {[%clk 0:00:13]} 61. Rg4+ {[%clk 0:00:14]}  Kf7 {[%clk 0:00:13]} 62. Kf3 {[%clk 0:00:13]}  Qb7+ {[%clk 0:00:11]} 63. Kf2 {[%clk 0:00:13]}  Qb2+ {[%clk 0:00:11]} 64. Kg1 {[%clk 0:00:13]}  Qc3 {[%clk 0:00:09]} 65. Bf2 {[%clk 0:00:11]}  h3 {[%clk 0:00:09]} 66. Rf4+ {[%clk 0:00:09]}  Kg6 {[%clk 0:00:08]} 67. g3 {[%clk 0:00:10]}  Qc6 {[%clk 0:00:06]} 68. Rg4+ {[%clk 0:00:08]}  Kf7 {[%clk 0:00:03]} 69. Rf4+ {[%clk 0:00:05]}  Ke8 {[%clk 0:00:03]} 70. Kf1 {[%clk 0:00:04]}  Qg2+ {[%clk 0:00:03]} 71. Ke2 {[%clk 0:00:05]}  h2 {[%clk 0:00:04]} 72. Rb4 {[%clk 0:00:05]}  h1=Q {[%clk 0:00:04]} 73. Rb8+ {[%clk 0:00:06]}  Kd7 {[%clk 0:00:04]} 74. Rb3 {[%clk 0:00:06]}  Qgf1+ {[%clk 0:00:03]} 75. Ke3 {[%clk 0:00:07]} 1-0


[Site "https://www.chess.com"]